[Event "World Junior U20 Girls 2018"]
[Site "Gebze"]
[Date "2018.09.13"]
[Round "9"]
[White "Malatsilava, Volha"]
[Black "Sade, Defne"]
[Result "1-0"]
[ECO "C85"]
[WhiteElo "2040"]
[BlackElo "1826"]
[Annotator "NA"]
[PlyCount "171"]
[EventDate "2018.09.05"]
[EventType "swiss"]
[EventCountry "TUR"]
[SourceTitle "playchess.com"]
[Source "ChessBase"]
[SourceQuality "1"]
[TimeControl "40/5400+30:1800+30"]

1. e4 {[%emt 0:00:30]} e5 {[%emt 0:00:30]} 2. Nf3 {[%emt 0:00:30]} Nc6 {[%emt 0:00:30]} 3. Bb5 {[%emt 0:00:30]} a6 {[%emt 0:00:00]} 4. Ba4 {[%emt 0:00:00]} Nf6 {[%emt 0:00:00]} 5. O-O {[%emt 0:00:00]} Be7 {[%emt 0:00:00]} 6. Bxc6 {[%emt 0:00:00]} dxc6 {[%emt 0:00:00] LiveBook: 1668 Games} 7. d3 {[%emt 0:00:00]} Nd7 {[%emt 0:00:00]} 8. Nbd2 {[%emt 0:00:00]} O-O {[%emt 0:01:00]} 9. Nc4 {[%emt 0:00:00]} f6 {[%emt 0:00:30]} 10. Nh4 {[%emt 0:00:00]} Nc5 {[%emt 0:00:00]} 11. Nf5 {[%emt 0:00:00]} Bxf5 {[%emt 0:05:00]} 12. exf5 {[%emt 0:00:30]} b5 {[%emt 0:03:30] C85: Closed Ruy Lopez: Deferred Exchange Variation} (12... Re8 13. Qg4 Qd7 14. Re1 b5 15. Bh6 Bf8 16. Nd2 Qd4 17. Qxd4 exd4 18. Bf4 Na4 19. Nf3 Rxe1+ 20. Rxe1 {½-½ (74) Jovanovic,Z (2533)-Bosiocic,M (2610) Valpovo 2017}) 13. Nd2 {[%emt 0:03:30]} Qd7 {[%emt 0:02:30]} 14. Qg4 $146 {[%emt 0:01:30]} ({Predecessor:} 14. Qf3 Rfd8 15. Ne4 Nxe4 16. dxe4 Bc5 17. Re1 Rab8 18. Be3 Bxe3 19. Qxe3 Qd2 20. Kf1 Qxc2 {0-1 (50) Albesa,A (1035)-Trevis,R (972) LSS email 2008}) 14... Nb7 {[%emt 0:05:30]} 15. Qf3 {[%emt 0:07:30]} Qd5 {[%emt 0:10:30]} 16. Ne4 {[%emt 0:01:30]} Rad8 {[%emt 0:02:30]} 17. Qg4 {[%emt 0:10:30]} c5 {[%emt 0:05:30]} 18. Re1 {[%emt 0:01:30]} Rf7 {[%emt 0:05:30]} 19. Be3 {[%emt 0:16:30]} Na5 {[%emt 0:03:30]} 20. Bd2 {[%emt 0:07:30]} Nc6 {[%emt 0:01:30]} 21. Re3 {[%emt 0:00:30]} Bf8 {[%emt 0:05:30]} 22. Rg3 {[%emt 0:00:30]} Qd7 {[%emt 0:04:30]} 23. c3 {[%emt 0:16:30]} Ne7 {[%emt 0:12:30]} 24. Rf3 {[%emt 0:03:30]} Qc6 {[%emt 0:04:30]} 25. Rd1 {[%emt 0:09:30]} a5 {[%emt 0:04:30]} 26. Bc1 {[%emt 0:04:18]} b4 {[%emt 0:04:12]} 27. c4 {[%emt 0:04:28]} Qa4 {[%emt 0:04:41]} 28. Rg3 {[%emt 0:00:29]} Qd7 {[%emt 0:00:43]} 29. Nxc5 {[%emt 0:02:35]} (29. Rf3 $11) 29... Qxf5 {[%emt 0:01:01]} 30. Ne6 {[%emt 0:10:40]} Qxg4 {[%emt 0:05:38]} 31. Rxg4 {[%emt 0:00:00]} Rd7 {[%emt 0:04:21]} 32. d4 {[%emt 0:00:00]} f5 {[%emt 0:01:38]} 33. Rg3 {[%emt 0:00:00]} f4 {[%emt 0:03:09]} 34. Rgd3 {[%emt 0:00:00]} e4 {[%emt 0:00:04]} 35. Rh3 {[%emt 0:00:00]} Ng6 {[%emt 0:00:56]} 36. Ng5 {[%emt 0:00:00]} Rfe7 {[%emt 0:00:44]} 37. Nxh7 {[%emt 0:00:00]} Re8 {[%emt 0:00:54]} 38. Nxf8 {[%emt 0:00:00]} Rxf8 {[%emt 0:00:43]} 39. Rh5 {[%emt 0:00:00]} Rfd8 {[%emt 0:00:31]} 40. d5 {[%emt 0:00:00]} c6 {[%emt 0:00:00]} 41. Rg5 {[%emt 0:02:30]} Ne7 {[%emt 0:11:45]} 42. Bxf4 {[%emt 0:01:30]} cxd5 {[%emt 0:00:30]} 43. c5 {[%emt 0:05:30]} d4 {[%emt 0:02:25]} 44. Bd6 {[%emt 0:04:30]} Nc8 {[%emt 0:01:56]} 45. Rxd4 {[%emt 0:03:30]} Nxd6 {[%emt 0:00:27]} 46. Rgd5 {[%emt 0:01:29]} Rc8 {[%emt 0:01:35]} 47. cxd6 {[%emt 0:01:30]} a4 {[%emt 0:03:35]} 48. Kf1 {[%emt 0:01:46]} Rc2 {[%emt 0:00:52]} 49. Rd2 {[%emt 0:02:07]} Rc1+ {[%emt 0:02:09]} 50. Rd1 {[%emt 0:01:05]} Rc2 {[%emt 0:01:06]} 51. R5d2 {[%emt 0:01:54]} b3 {[%emt 0:00:10]} 52. axb3 {[%emt 0:02:04]} axb3 {[%emt 0:00:13]} 53. Rxc2 {[%emt 0:00:09]} bxc2 {[%emt 0:00:23]} 54. Rc1 {[%emt 0:00:32]} Rxd6 {[%emt 0:00:30]} 55. Rxc2 {[%emt 0:00:30]} Rd1+ {[%emt 0:00:00]} 56. Ke2 {[%emt 0:00:00]} Rh1 {[%emt 0:00:48]} 57. h3 {[%emt 0:00:25]} Rh2 {[%emt 0:00:12]} 58. g3 {[%emt 0:00:00]} Rxh3 {[%emt 0:00:59]} 59. Ke3 {[%emt 0:00:04]} Rh1 {[%emt 0:01:53]} 60. Kxe4 {[%emt 0:00:05]} Kf7 {[%emt 0:00:59]} 61. b4 {[%emt 0:06:20]} Rb1 {[%emt 0:00:08]} 62. Rc4 {[%emt 0:00:00]} Ke6 {[%emt 0:03:03]} 63. Rc6+ {[%emt 0:01:14]} Kf7 {[%emt 0:01:12]} 64. Rc4 {[%emt 0:00:37]} Ke6 {[%emt 0:00:21]} 65. Kf4 {[%emt 0:02:16]} Rb2 {[%emt 0:01:07]} 66. f3 {[%emt 0:00:38]} Rb3 {[%emt 0:00:16]} 67. Kg4 {[%emt 0:00:31]} Kf6 {[%emt 0:01:35]} 68. f4 {[%emt 0:00:46]} g6 {[%emt 0:00:45]} 69. Rc6+ {[%emt 0:01:07]} Kg7 {[%emt 0:00:06]} 70. Rb6 {[%emt 0:00:25]} Kh7 {[%emt 0:01:26]} 71. Kh4 {[%emt 0:00:12]} Rf3 {[%emt 0:00:29]} 72. b5 {[%emt 0:00:54]} Kg7 {[%emt 0:02:33]} 73. Rc6 {[%emt 0:00:30]} Rb3 {[%emt 0:00:07]} 74. b6 {[%emt 0:00:00]} Rb5 {[%emt 0:00:55]} 75. g4 {[%emt 0:02:46]} g5+ {[%emt 0:01:18]} 76. fxg5 {[%emt 0:00:14]} Rb3 {[%emt 0:00:00]} 77. g6 {[%emt 0:00:13]} Rb4 {[%emt 0:00:22]} 78. Kh5 {[%emt 0:00:36]} Rb2 {[%emt 0:01:24]} 79. Rc7+ {[%emt 0:00:18]} Kf6 {[%emt 0:00:39]} 80. Rf7+ {[%emt 0:00:30]} Ke6 {[%emt 0:00:05]} 81. b7 {[%emt 0:00:05]} Rh2+ {[%emt 0:00:37]} 82. Kg5 {[%emt 0:00:30]} Rb2 {[%emt 0:00:00]} 83. Rf6+ {[%emt 0:01:03]} Ke7 {[%emt 0:01:12]} 84. g7 {[%emt 0:00:22]} Rxb7 {[%emt 0:00:48]} 85. g8=Q {[%emt 0:00:09]} Rb5+ {[%emt 0:00:05]} 86. Rf5 {[%emt 0:00:05]} 1-0

[Event "World Junior U20 Girls 2018"]
[Site "Gebze"]
[Date "2018.09.13"]
[Round "9"]
[White "Caballero Quijano, Mitzy Mishell"]
[Black "Incecik, Seyma Zeynep"]
[Result "1-0"]
[ECO "E01"]
[WhiteElo "2034"]
[BlackElo "1716"]
[Annotator "NA"]
[PlyCount "117"]
[EventDate "2018.09.05"]
[EventType "swiss"]
[EventCountry "TUR"]
[SourceTitle "playchess.com"]
[Source "ChessBase"]
[SourceQuality "1"]
[TimeControl "40/5400+30:1800+30"]

1. d4 {[%emt 0:00:30]} Nf6 {[%emt 0:00:30]} 2. Nf3 {[%emt 0:00:00]} d5 {[%emt 0:01:30]} 3. c4 {[%emt 0:00:00]} e6 {[%emt 0:00:00]} 4. g3 {[%emt 0:00:00]} c6 {[%emt 0:01:00]} 5. Bg2 {[%emt 0:00:00]} Bd6 {[%emt 0:00:00]} 6. O-O {[%emt 0:00:30]} O-O {[%emt 0:00:00]} 7. b3 {[%emt 0:00:30]} Nbd7 {[%emt 0:00:30]} 8. Bb2 {[%emt 0:00:00]} Ne4 {[%emt 0:05:30]} 9. Nfd2 {[%emt 0:01:00]} f5 {[%emt 0:10:30]} 10. e3 {[%emt 0:09:30]} Qg5 {[%emt 0:16:30]} 11. Qe2 {[%emt 0:07:30] E01: Catalan: Early deviations} Ndf6 {[%emt 0:04:30]} 12. f3 {[%emt 0:06:30]} Qh5 $146 {[%emt 0:10:30]} ({Predecessor:} 12... Nxg3 13. hxg3 Bxg3 14. Rd1 Ng4 15. fxg4 fxg4 16. Rf1 Bd7 17. Nc3 Qh4 18. Bh1 Bd6 19. Qg2 Qg5 20. Rae1 h5 21. Nf3 Qh6 22. Ne5 {1-0 (22) Barbosa,P (2228)-Zaidan Lima,A (1989) Blumenau 2010}) 13. Qe1 {[%emt 0:10:30]} Ng5 {[%emt 0:06:30]} 14. Ba3 {[%emt 0:00:30]} Bxa3 {[%emt 0:01:30]} 15. Nxa3 {[%emt 0:00:30]} Nh3+ {[%emt 0:02:30]} 16. Bxh3 {[%emt 0:05:30]} Qxh3 {[%emt 0:00:30]} 17. Nc2 {[%emt 0:01:30]} Bd7 {[%emt 0:00:30]} 18. Nb4 {[%emt 0:00:30]} Rae8 {[%emt 0:03:30]} 19. Nd3 {[%emt 0:00:30]} Bc8 {[%emt 0:03:30]} 20. Qe2 $16 {[%emt 0:01:30]} Nd7 {[%emt 0:06:30]} 21. Rae1 {[%emt 0:07:30]} Qh6 {[%emt 0:03:30]} 22. f4 {[%emt 0:10:30]} Re7 {[%emt 0:02:18]} 23. b4 {[%emt 0:00:30]} Qg6 {[%emt 0:03:46]} 24. Rc1 {[%emt 0:01:30]} Qe8 {[%emt 0:01:04]} 25. Ne5 {[%emt 0:02:30]} Nxe5 {[%emt 0:01:46]} 26. dxe5 {[%emt 0:00:30]} Qd8 {[%emt 0:00:20]} 27. Nf3 {[%emt 0:03:30]} Qb6 {[%emt 0:01:03]} 28. a3 {[%emt 0:00:30]} a5 {[%emt 0:01:06]} 29. c5 {[%emt 0:00:00]} Qc7 {[%emt 0:00:20]} 30. Nd4 {[%emt 0:01:00]} Bd7 {[%emt 0:00:30]} 31. b5 {[%emt 0:03:30]} cxb5 {[%emt 0:03:26]} 32. Nxb5 {[%emt 0:00:30]} Bxb5 {[%emt 0:00:16]} 33. Qxb5 {[%emt 0:00:00]} Rc8 {[%emt 0:00:18]} 34. Kf2 {[%emt 0:02:00]} Kf7 {[%emt 0:00:42]} 35. Ke2 {[%emt 0:00:30]} Rd7 {[%emt 0:01:03]} 36. Kd3 {[%emt 0:00:30]} Ke7 {[%emt 0:03:57]} 37. Kd4 {[%emt 0:00:00]} Rdd8 {[%emt 0:01:26]} 38. Rb1 {[%emt 0:00:00]} Rd7 {[%emt 0:01:41]} 39. Rf2 {[%emt 0:02:30]} Ra8 {[%emt 0:01:11]} 40. Qb6 {[%emt 0:00:00]} Qc6 {[%emt 0:00:00]} 41. Rb5 {[%emt 0:07:00]} Ra6 {[%emt 0:02:47]} 42. Qxc6 {[%emt 0:00:30]} bxc6 {[%emt 0:00:30]} 43. Rb6 {[%emt 0:00:30]} Rda7 {[%emt 0:03:30]} 44. Rfb2 {[%emt 0:01:30]} Rxb6 {[%emt 0:11:01]} 45. cxb6 {[%emt 0:01:30]} Rb7 {[%emt 0:04:18]} 46. Kc5 {[%emt 0:00:30]} Kd7 {[%emt 0:00:00]} 47. Rd2 {[%emt 0:00:30]} Rb8 {[%emt 0:01:47]} 48. Rd4 {[%emt 0:00:00]} Ra8 {[%emt 0:00:54]} 49. b7 {[%emt 0:00:00]} Rb8 {[%emt 0:00:32]} 50. Kb6 {[%emt 0:00:30]} c5 {[%emt 0:00:30]} 51. Ra4 {[%emt 0:00:00]} c4 {[%emt 0:00:09]} 52. Rxa5 {[%emt 0:00:00]} c3 {[%emt 0:00:00]} 53. Rc5 {[%emt 0:00:30]} h6 {[%emt 0:00:10]} 54. a4 {[%emt 0:00:30]} g5 {[%emt 0:00:30]} 55. a5 {[%emt 0:00:00]} g4 {[%emt 0:00:14]} 56. Rc7+ {[%emt 0:00:00]} Kd8 {[%emt 0:00:02]} 57. a6 {[%emt 0:00:00]} c2 {[%emt 0:00:00]} 58. a7 {[%emt 0:00:00]} Rxb7+ {[%emt 0:00:34]} 59. Kxb7 {[%emt 0:00:30]} 1-0

[Event "World Junior U20 Girls 2018"]
[Site "Gebze"]
[Date "2018.09.13"]
[Round "9"]
[White "Yang, Yijing"]
[Black "Serikbay, Assel"]
[Result "0-1"]
[ECO "D11"]
[WhiteElo "2018"]
[BlackElo "2125"]
[Annotator "NA"]
[PlyCount "72"]
[EventDate "2018.09.05"]
[EventType "swiss"]
[EventCountry "TUR"]
[SourceTitle "playchess.com"]
[Source "ChessBase"]
[SourceQuality "1"]
[TimeControl "40/5400+30:1800+30"]

1. d4 {[%emt 0:00:30]} d5 {[%emt 0:00:30]} 2. c4 {[%emt 0:00:30]} c6 {[%emt 0:00:30]} 3. e3 {[%emt 0:00:00]} Nf6 {[%emt 0:00:00]} 4. Nf3 {[%emt 0:00:00]} a6 {[%emt 0:01:00]} 5. Bd3 {[%emt 0:00:00]} Bg4 {[%emt 0:00:30]} 6. Nbd2 {[%emt 0:00:00]} Nbd7 {[%emt 0:02:30]} 7. Qc2 {[%emt 0:00:30]} e6 {[%emt 0:00:30]} 8. b3 {[%emt 0:00:30] D11: Slav Defence: 3 Nf3 sidelines and 3...Nf6 4 e3 Bg4} Bd6 {[%emt 0:07:30]} 9. Bb2 {[%emt 0:00:30]} O-O {[%emt 0:11:30]} (9... Bh5 10. h3 Bg6 11. O-O Qe7 12. e4 dxe4 13. Nxe4 Nxe4 14. Bxe4 Bxe4 15. Qxe4 {½-½ (20) Ponomariov,R (2687)-Fressinet,L (2657) Heraklio 2017}) 10. Ne5 {[%emt 0:02:30]} Bh5 {[%emt 0:01:30]} 11. O-O {[%emt 0:00:30]} Bg6 {[%emt 0:08:30]} 12. Nxg6 {[%emt 0:15:30]} hxg6 {[%emt 0:02:30]} 13. c5 {[%emt 0:01:30]} Be7 $146 {[%emt 0:09:30]} ({Predecessor:} 13... Bc7) 14. f4 {[%emt 0:00:30]} Ng4 {[%emt 0:06:30]} 15. Rae1 {[%emt 0:01:30]} f5 {[%emt 0:02:30]} 16. Nf3 {[%emt 0:00:30]} Nh6 {[%emt 0:12:30]} 17. Qf2 {[%emt 0:06:30]} g5 {[%emt 0:00:30]} 18. fxg5 {[%emt 0:02:30]} Bxg5 {[%emt 0:00:30]} 19. Nxg5 {[%emt 0:00:30]} Qxg5 {[%emt 0:00:30]} 20. Qf4 {[%emt 0:00:30]} Qe7 {[%emt 0:01:30]} 21. h3 {[%emt 0:12:30]} Nf6 {[%emt 0:11:08]} 22. Qg5 {[%emt 0:04:30]} Nf7 {[%emt 0:06:04]} 23. Qg6 {[%emt 0:00:30]} Nh7 {[%emt 0:01:20]} 24. Qh5 {[%emt 0:10:30]} Nfg5 {[%emt 0:00:51]} 25. g4 {[%emt 0:08:30]} Rf6 {[%emt 0:03:02]} 26. gxf5 {[%emt 0:00:30]} exf5 {[%emt 0:03:28]} 27. Bxf5 {[%emt 0:00:30]} Rh6 {[%emt 0:00:07]} 28. Qg4 {[%emt 0:02:30]} g6 {[%emt 0:03:05]} 29. Bd3 {[%emt 0:05:30]} Rh4 {[%emt 0:00:43]} 30. Qg3 {[%emt 0:02:30]} Rxh3 {[%emt 0:00:12]} 31. Qg2 $19 {[%emt 0:00:30]} (31. Qd6 {is more resistant.} Qxd6 32. cxd6) 31... Rxe3 {[%emt 0:01:20]} 32. Rd1 {[%emt 0:00:30]} Qc7 {[%emt 0:01:59]} 33. Qc2 {[%emt 0:03:49]} Rg3+ {[%emt 0:00:31]} 34. Kh1 {[%emt 0:00:11]} Rh3+ {[%emt 0:01:31]} 35. Kg1 {[%emt 0:00:06]} Qg3+ {[%emt 0:00:18]} 36. Qg2 {[%emt 0:00:07]} Qe3+ {[%emt 0:00:05]} 0-1

[Event "World Junior U20 Girls 2018"]
[Site "Gebze"]
[Date "2018.09.13"]
[Round "9"]
[White "Celik, Eylul"]
[Black "Aksoy, Ayca"]
[Result "1/2-1/2"]
[ECO "E00"]
[WhiteElo "2014"]
[BlackElo "1898"]
[Annotator "NA"]
[PlyCount "82"]
[EventDate "2018.09.05"]
[EventType "swiss"]
[EventCountry "TUR"]
[SourceTitle "playchess.com"]
[Source "ChessBase"]
[SourceQuality "1"]
[TimeControl "40/5400+30:1800+30"]

1. d4 {[%emt 0:00:30]} Nf6 {[%emt 0:01:30]} 2. c4 {[%emt 0:00:30]} e6 {[%emt 0:00:30]} 3. Bg5 {[%emt 0:00:00]} Bb4+ {[%emt 0:03:30]} 4. Nd2 {[%emt 0:00:00]} h6 {[%emt 0:02:30]} 5. Bxf6 {[%emt 0:00:30] E00: Catalan Bogo-Indian (3 g3 Bb4+)} (5. Bh4 g5 6. Bg3 Ne4 7. Ngf3 h5 8. Qc2 Nxd2 9. Nxd2 Nc6 10. d5 h4 11. dxc6 hxg3 12. fxg3 bxc6 13. e3 Rb8 14. a3 {1-0 (31) Ivanisevic,I (2648)-Aroshidze,L (2517) Sitges 2016}) 5... Qxf6 {[%emt 0:00:30]} 6. a3 {[%emt 0:00:00]} Bxd2+ {[%emt 0:02:30]} 7. Qxd2 {[%emt 0:00:00]} b6 {[%emt 0:06:30]} 8. e3 {[%emt 0:11:30]} Bb7 {[%emt 0:00:30]} 9. Ne2 {[%emt 0:00:30]} O-O {[%emt 0:03:30]} 10. Nc3 {[%emt 0:00:30]} d6 {[%emt 0:02:30]} 11. d5 $146 {[%emt 0:06:30]} ({Predecessor:} 11. f3 Nd7 12. Bd3 c5 13. dxc5 Nxc5 {0-1 (51) Costescu,T-Garban,A Calimanesti 2000}) 11... Nd7 {[%emt 0:05:30]} 12. Be2 {[%emt 0:02:30]} a6 {[%emt 0:04:30]} 13. O-O {[%emt 0:02:30]} e5 {[%emt 0:03:30]} 14. b4 {[%emt 0:03:30]} Qg5 {[%emt 0:10:30]} 15. f4 {[%emt 0:07:30]} Qe7 {[%emt 0:01:30]} 16. f5 {[%emt 0:04:30]} e4 {[%emt 0:07:30]} 17. Rf4 {[%emt 0:02:30]} Nf6 {[%emt 0:00:00]} 18. Bd1 {[%emt 0:04:30]} Qe5 {[%emt 0:01:00]} 19. Bb3 {[%emt 0:04:30]} b5 {[%emt 0:04:30]} 20. Rd1 {[%emt 0:03:30]} bxc4 {[%emt 0:01:30]} 21. Bxc4 {[%emt 0:00:00]} c6 {[%emt 0:07:30]} 22. dxc6 {[%emt 0:07:00]} Bxc6 {[%emt 0:00:00]} 23. Qd4 {[%emt 0:03:30]} Rfc8 {[%emt 0:06:00]} 24. a4 {[%emt 0:08:30]} Bd7 {[%emt 0:07:50]} 25. Nxe4 {[%emt 0:15:53]} Qxd4 $16 {[%emt 0:07:50]} 26. Rxd4 {[%emt 0:00:37]} Nxe4 {[%emt 0:00:09]} 27. Rfxe4 {[%emt 0:01:19]} Re8 {[%emt 0:03:45]} 28. Rxe8+ {[%emt 0:01:35]} Rxe8 {[%emt 0:00:20]} 29. Kf2 {[%emt 0:02:04]} Bxa4 {[%emt 0:00:55]} 30. Bxa6 {[%emt 0:00:58]} Re5 {[%emt 0:00:36]} 31. Bd3 {[%emt 0:00:48]} Bb5 {[%emt 0:02:19]} 32. g4 {[%emt 0:01:55]} Bxd3 {[%emt 0:01:07]} 33. Rxd3 {[%emt 0:00:06]} Rb5 {[%emt 0:00:00]} 34. Rd4 {[%emt 0:00:49]} d5 {[%emt 0:00:01]} 35. e4 {[%emt 0:03:21]} dxe4 {[%emt 0:00:30]} 36. Ke3 {[%emt 0:00:00]} g6 {[%emt 0:00:15]} 37. Kxe4 {[%emt 0:00:44]} gxf5+ {[%emt 0:01:00]} 38. gxf5 {[%emt 0:00:30]} Kg7 {[%emt 0:00:00]} 39. Kf4 {[%emt 0:00:00]} Kf6 {[%emt 0:00:42]} 40. Rd6+ {[%emt 0:00:00]} Kg7 {[%emt 0:00:00]} 41. Rd4 {[%emt 0:01:51]} Kf6 {[%emt 0:04:41]} 1/2-1/2

[Event "World Junior U20 Girls 2018"]
[Site "Gebze"]
[Date "2018.09.13"]
[Round "9"]
[White "Hu, Yu A"]
[Black "Song, Yuxin"]
[Result "1/2-1/2"]
[ECO "C88"]
[WhiteElo "2009"]
[BlackElo "2156"]
[Annotator "NA"]
[PlyCount "70"]
[EventDate "2018.09.05"]
[EventType "swiss"]
[EventCountry "TUR"]
[SourceTitle "playchess.com"]
[Source "ChessBase"]
[SourceQuality "1"]
[TimeControl "40/5400+30:1800+30"]

1. e4 {[%emt 0:00:30]} e5 {[%emt 0:00:30]} 2. Nf3 {[%emt 0:01:30]} Nc6 {[%emt 0:00:30]} 3. Bb5 {[%emt 0:00:30]} a6 {[%emt 0:00:00]} 4. Ba4 {[%emt 0:00:30]} Nf6 {[%emt 0:00:00]} 5. O-O {[%emt 0:00:00]} Be7 {[%emt 0:00:30]} 6. Re1 {[%emt 0:00:00]} b5 {[%emt 0:00:00]} 7. Bb3 {[%emt 0:00:30]} O-O {[%emt 0:00:00]} 8. d3 {[%emt 0:01:30]} d6 {[%emt 0:02:30]} 9. a3 {[%emt 0:05:30]} Bg4 {[%emt 0:07:30] C88: Closed Ruy Lopez: Anti-Marshall Systems} (9... Nb8 10. Nbd2 Nbd7 11. Ba2 c5 12. Nf1 Nb6 13. Ng3 Qc7 14. Nh4 g6 15. Bh6 Re8 16. Qd2 Ng4 17. Bg5 Bxg5 18. Qxg5 {½-½ (33) Van Foreest,J (2609)-Anand,V (2783) Germany 2018}) 10. c3 {[%emt 0:00:30]} Na5 {[%emt 0:00:30]} 11. Ba2 {[%emt 0:00:30]} c5 {[%emt 0:00:30]} 12. Nbd2 {[%emt 0:02:30]} Re8 $146 {[%emt 0:04:30]} ({Predecessor:} 12... Nc6 13. Nf1 Be6 14. Bxe6 fxe6 {½-½ (14) Karpatchev,A (2475)-Kveinys,A (2524) Bad Woerishofen 2016}) 13. h3 {[%emt 0:00:30]} Be6 {[%emt 0:00:30]} 14. Nf1 {[%emt 0:18:30]} Bxa2 {[%emt 0:05:30]} 15. Rxa2 {[%emt 0:00:00]} d5 {[%emt 0:04:30]} 16. Qc2 {[%emt 0:06:00]} Bf8 {[%emt 0:05:30]} 17. Bg5 {[%emt 0:00:30]} d4 {[%emt 0:00:30]} 18. cxd4 {[%emt 0:04:30]} cxd4 {[%emt 0:00:00]} 19. b4 {[%emt 0:00:00]} Rc8 {[%emt 0:00:00]} 20. Qd2 {[%emt 0:00:00]} Nc6 {[%emt 0:10:30]} 21. Rc1 {[%emt 0:03:30]} Qd6 {[%emt 0:03:30]} 22. Ng3 {[%emt 0:00:00]} Nd7 {[%emt 0:05:00]} 23. Nf5 {[%emt 0:01:00]} Qe6 {[%emt 0:00:30]} 24. Rac2 {[%emt 0:00:30]} Ndb8 {[%emt 0:00:30]} ({Black should try} 24... f6 $17) 25. Bh4 $11 {[%emt 0:14:30]} f6 {[%emt 0:03:30]} 26. g4 {[%emt 0:06:30]} g6 {[%emt 0:08:30]} 27. Nh6+ {[%emt 0:02:30]} Kh8 {[%emt 0:00:00]} 28. Bg3 {[%emt 0:01:30]} Qb3 {[%emt 0:17:00]} 29. Kg2 {[%emt 0:04:30]} Bxh6 {[%emt 0:11:03]} 30. Qxh6 {[%emt 0:00:30]} Qxd3 {[%emt 0:00:18]} 31. Bh4 {[%emt 0:00:00]} Re6 {[%emt 0:01:15]} 32. Bxf6+ {[%emt 0:01:00]} Rxf6 {[%emt 0:00:30]} 33. Ng5 {[%emt 0:00:00]} Rc7 {[%emt 0:00:43]} 34. Rxc6 {[%emt 0:03:00]} Nxc6 {[%emt 0:00:01]} 35. Rxc6 {[%emt 0:00:30]} Rxf2+ {[%emt 0:00:08]} 1/2-1/2

[Event "World Junior U20 Girls 2018"]
[Site "Gebze"]
[Date "2018.09.13"]
[Round "9"]
[White "Stanciu, Ioana-Georgiana"]
[Black "Pychova, Nela"]
[Result "0-1"]
[ECO "B32"]
[WhiteElo "2000"]
[BlackElo "2173"]
[Annotator "NA"]
[PlyCount "116"]
[EventDate "2018.09.05"]
[EventType "swiss"]
[EventCountry "TUR"]
[SourceTitle "playchess.com"]
[Source "ChessBase"]
[SourceQuality "1"]
[TimeControl "40/5400+30:1800+30"]

1. e4 {[%emt 0:01:30]} c5 {[%emt 0:00:30]} 2. Nf3 {[%emt 0:00:00]} Nc6 {[%emt 0:00:30]} 3. d4 {[%emt 0:00:00]} cxd4 {[%emt 0:00:00]} 4. Nxd4 {[%emt 0:00:30]} e5 {[%emt 0:00:00]} 5. Nb5 {[%emt 0:03:30]} a6 {[%emt 0:00:00]} 6. Nd6+ {[%emt 0:00:30]} Bxd6 {[%emt 0:00:00]} 7. Qxd6 {[%emt 0:00:00]} Qe7 {[%emt 0:00:30]} 8. Qd2 {[%emt 0:06:00] B32: Sicilian: Löwenthal and Kalashnikov Variations} (8. Qd1 Nf6 9. Nc3 d6 10. Bg5 Be6 11. Nd5 Bxd5 12. exd5 Nb8 13. Qf3 Nbd7 14. O-O-O h6 15. Be3 h5 16. h3 O-O-O 17. Ba7 Nc5 {1-0 (80) Yu,Y (2759)-Li,C (2725) Ningbo 2018}) 8... Nf6 {[%emt 0:02:30]} 9. Nc3 {[%emt 0:03:30]} d6 {[%emt 0:02:30]} 10. b3 {[%emt 0:00:30]} O-O {[%emt 0:14:30]} 11. Ba3 {[%emt 0:05:30]} Rd8 $146 {[%emt 0:01:30]} ({Predecessor:} 11... Rb8 12. O-O-O Nd4 13. f4 Qc7 14. Bb2 b5 15. Bd3 Bb7 {0-1 (23) Ehrler,E-Roeder,F Kitzingen 1980}) 12. O-O-O {[%emt 0:03:30]} b5 {[%emt 0:20:30]} 13. Nd5 {[%emt 0:11:30]} Nxd5 {[%emt 0:02:30]} 14. exd5 {[%emt 0:00:30]} Nb8 {[%emt 0:03:30]} 15. Bd3 {[%emt 0:02:30]} Nd7 {[%emt 0:04:30]} 16. g4 {[%emt 0:14:30]} Nf6 {[%emt 0:02:30]} 17. f3 {[%emt 0:04:30]} Bb7 {[%emt 0:02:30]} 18. Be4 {[%emt 0:04:30]} Nxe4 {[%emt 0:07:30]} 19. fxe4 {[%emt 0:00:30]} a5 {[%emt 0:00:00]} 20. Kb1 {[%emt 0:01:30]} b4 {[%emt 0:03:00]} 21. Bb2 {[%emt 0:05:30]} Ba6 {[%emt 0:00:30]} 22. h4 {[%emt 0:00:30]} Rf8 {[%emt 0:06:30]} 23. h5 {[%emt 0:01:30] [#]} h6 $1 {[%emt 0:12:23]} 24. Bc1 {[%emt 0:05:30]} f6 {[%emt 0:00:27]} 25. Qf2 {[%emt 0:01:30]} Bc8 {[%emt 0:04:05]} 26. Rdg1 {[%emt 0:01:30]} a4 {[%emt 0:01:18]} 27. Be3 {[%emt 0:01:30]} Qc7 {[%emt 0:04:45]} 28. Qd2 {[%emt 0:02:12]} Qc3 {[%emt 0:03:04]} 29. Qxc3 {[%emt 0:12:13]} bxc3 {[%emt 0:00:03]} 30. Rh3 {[%emt 0:00:08]} Rf7 {[%emt 0:00:33]} 31. Bf2 {[%emt 0:00:37]} Rc7 {[%emt 0:01:40]} 32. Bb6 {[%emt 0:03:27]} Rb7 {[%emt 0:00:45]} 33. Be3 {[%emt 0:00:17]} Rb4 {[%emt 0:00:46]} 34. Bc1 {[%emt 0:01:29]} Rxe4 {[%emt 0:00:23]} 35. Rxc3 {[%emt 0:00:19]} Bxg4 {[%emt 0:00:36]} 36. Rc6 {[%emt 0:01:13]} axb3 {[%emt 0:00:22]} 37. axb3 {[%emt 0:00:42]} Rd8 {[%emt 0:00:26]} 38. c4 {[%emt 0:02:15]} f5 {[%emt 0:00:42]} 39. b4 {[%emt 0:00:29]} Rd7 {[%emt 0:00:30]} 40. b5 {[%emt 0:00:00]} Be2 {[%emt 0:00:00]} 41. Bxh6 {[%emt 0:06:39]} Rxc4 {[%emt 0:08:42]} 42. b6 {[%emt 0:03:30]} Rb4+ {[%emt 0:09:17]} 43. Kc2 {[%emt 0:00:30]} Kh7 {[%emt 0:01:49]} 44. Bg5 {[%emt 0:03:56]} Bf3 {[%emt 0:05:01]} 45. Be3 {[%emt 0:12:42]} Bxd5 {[%emt 0:01:56]} 46. Rc8 {[%emt 0:01:09]} Rc4+ {[%emt 0:03:07]} 47. Rxc4 {[%emt 0:00:30]} Bxc4 {[%emt 0:00:00]} 48. Kc3 {[%emt 0:00:03]} Ba6 {[%emt 0:01:38]} 49. Rg5 {[%emt 0:02:24]} f4 $19 {[%emt 0:00:31]} 50. Bg1 {[%emt 0:01:10]} Rf7 {[%emt 0:00:38]} 51. Rg6 {[%emt 0:02:13]} Rf6 {[%emt 0:00:14]} 52. Rg4 {[%emt 0:00:00]} Kh6 {[%emt 0:01:09]} 53. Bf2 {[%emt 0:01:01]} Bb7 {[%emt 0:01:27]} 54. Kc4 {[%emt 0:01:13]} d5+ {[%emt 0:01:33]} 55. Kd3 {[%emt 0:01:59]} d4 {[%emt 0:00:44]} 56. Kd2 {[%emt 0:00:37]} Rxb6 {[%emt 0:00:12]} 57. Kc2 {[%emt 0:00:31]} Be4+ {[%emt 0:00:38]} 58. Kc1 {[%emt 0:00:30]} Rb1+ {[%emt 0:00:00]} 0-1